Workbook

Sheet REMOVALS
B2: REMOVALS
B3: PROJECT ID: 6210-01-60
F4: 203.01 | G4: 204.9060.S
F5: REMOVING SMALL PIPE CULVERTS | G5: REMOVING 01. ENDWALL
B8: ROADWAY | C8: STATION | D8: TO | E8: STATION | F8: EACH | G8: EACH
B9: STH 49 | C9: 65+55 | E9: 65+55 | F9: - | G9: 2
B10: STH 49 | C10: 94+09 | E10: 94+09 | F10: 1 | G10: -
B11: STH 49 | C11: 155+01 | E11: 155+01 | F11: - | G11: 2
B12: STH 49 | C12: 161+35 | E12: 161+66 | F12: - | G12: 2
B13: STH 49 | C13: 235+33 | E13: 235+33 | F13: - | G13: 2
B14: STH 49 | C14: 278+31 | E14: 278+90 | F14: 1 | G14: -
B15: TOTAL | F15: =SUM(F9:F14) -> 2 | G15: =SUM(G9:G14) -> 8
B17: CALC'D BY: JG
B18: CHECKED BY: JLW | C18: TJO

Sheet MILLING
B2: ASPHALTIC SURFACE MILLING
B3: PROJECT ID: 6210-00-73
F4: 204.0115 | G4: 204.012
F5: REMOVING ASPHALTIC SURFACE BUTT JOINTS | G5: REMOVING ASPHALTIC SURFACE MILLING
B9: ROADWAY | C9: STA | D9: TO | E9: STA | F9: SY | G9: SY | I9: Length (ft) | J9: Width (ft) | L9: Autocad flood of HMA area = 735,051.79 SF
B10: STH 49 | C10: 5535.25 | E10: 5537.25 | F10: =(I10*J10)/9 -> 6.666666667 | G10: - | I10: =E10-C10 -> 2 | J10: 30 | L10: See J:\Active\NC\6210-00-03 STH 49\C3D\62100003\Design\Quantities\90% Quantities\GRB_MQs_90_pavt-STH 49.dwg
B11: CTH X | C11: 10815 | E11: - | F11: 6.666666667 | G11: - | I11: 2 | J11: 30
B12: CYPRESS AVE | C12: 16211 | E12: - | F12: 14 | G12: - | I12: 4 | J12: 30
B13: CUMBERLAND AVE | C13: 21790 | E13: - | F13: 6.666666667 | G13: - | I13: 2 | J13: 30
B14: CREE AVE | C14: 28575 | E14: - | F14: 6.666666667 | G14: - | I14: 2 | J14: 30
B15: STH 49 | C15: 28918 | E15: 28919.73 | F15: 6.666666667 | G15: - | I15: 2 | J15: 30
B16: STH 49 | C16: 5535.25 | E16: 28919.73 | F16: - | G16: =CEILING(((735051.79)/9),100) -> 81700 | I16: =+E16-C16 -> 23384.48 | J16: 30
B17: TOTAL | F17: 49 | G17: =SUM(G16:G16) -> 81700
B22: CALC'D BY: JG
B23: CHECKED BY: TJO
B24: UPDATED BY: GRB 10/26/2018
B25: UPDATED BY: JAG 1/16/19

Sheet EXCAVATION
B2: EXCAVATION COMMON
B3: PROJECT ID: 6210-01-60
F4: 205.01
F5: EXCAVATION COMMON
H8: RECTANGLE AREA | L8: TRIANGLE AREA
B9: ROADWAY | C9: STA | D9: TO | E9: STA | F9: CY | H9: LENGTH | I9: WIDTH | J9: HEIGHT | K9: AREA | L9: BASE | M9: HEIGHT | N9: WIDTH | O9: AREA
B10: STH 49 | C10: 9359 | E10: 94+59 | F10: =K10+O10 -> 679.7839506 | H10: 100 | I10: 50 | J10: =18.25/12 -> 1.520833333 | K10: =(H10*I10*J10)/27 -> 281.6358025 | L10: 50 | M10: 4.3 | N10: 50 | O10: =0.5*L10*M10*N10*2/27 -> 398.1481481
B11: STH 49 | C11: 27781 | E11: 27940 | F11: =K11+O11 -> 744.5987654 | H11: 100 | I11: 50 | J11: =18.25/12 -> 1.520833333 | K11: =H11*I11*J11/27 -> 281.6358025 | L11: 50 | M11: 5 | N11: 50 | O11: =0.5*L11*M11*N11*2/27 -> 462.962963
B12: TOTAL | F12: 1490
B22: CALC'D BY: JAG 1/16/2019

Sheet AGGREGATE
B2: AGGREGATE ITEMS
F3: PROJECT ID: 6210-00-73 | H3: PROJECT ID: 6210-01-60
F4: 305.011 | G4: 624.01 | H4: 305.012 | I4: 624.01
F5: BASE AGGREGATE DENSE 3/4-INCH | G5: WATER | H5: BASE AGGREGATE DENSE 1 1/4-INCH | I5: WATER
B9: ROADWAY | C9: STA | D9: TO | E9: STA | F9: TON | G9: MGAL | H9: TON | I9: MGAL | L9: Length (ft) | M9: Width (ft) | N9: Depth (ft)
B10: STH 49 | C10: 5535.25 | E10: 28919.73 | F10: =CEILING((((23385*14*0.17)/27)*2.1),50) -> 4350 | G10: =CEILING(F10/100,1) -> 44 | H10: - | I10: - | L10: 23385 | M10: 14 | N10: 0.17
B11: STH 49 | C11: 9359 | E11: 9459 | F11: - | G11: - | H11: =CEILING((((100*50*1)/27)*2),10) -> 380 | I11: - | L11: 100 | M11: 50 | N11: 1
B12: STH 49 | C12: 27797 | E12: 27911 | F12: - | G12: - | H12: =CEILING((((114*50*1)/27)*2),10) -> 430 | I12: - | L12: 114 | M12: 50 | N12: 1
B13: UNDISTRIBUTED | F13: - | G13: - | H13: - | I13: 9
B14: TOTAL | F14: =SUM(F10) -> 4350 | G14: =SUM(G10) -> 44 | H14: =SUM(H11:H12) -> 810 | I14: =CEILING(SUM(I10:I13),1) -> 9
L17: FDM 14-15-10.2.2 Table 10.1
B18: CALC'D BY: JG | L18: 3/4-Inch = 2.1 TON/CY
B19: CHECKED BY: TJO | L19: 1 1/4-Inch = 2.0 TON/CY
B20: UPDATED BY: GRB 10/26/2018
B21: UPDATED BY: JAG 12/4/2108

Sheet ASPHALT
B2: ASPHALT ITEMS
F4: PROJECT ID: 6210-00-73 | I4: PROJECT ID: 6210-01-60
F5: 460.5224 | G5: 455.0605 | H5: 465.0475 | I5: 460.5224 | J5: 455.0605
F6: HMA PAVEMENT 4 LT 58-28 S | G6: TACK COAT | H6: ASPHALTIC CENTERLINE RUMBLE STRIPS 2-LANE RURAL | I6: HMA PAVEMENT 4 LT 58-28 S | J6: TACK COAT
S9: Comment
B10: ROADWAY | C10: STA | D10: TO | E10: STA | F10: TON | G10: GAL | H10: LF | I10: TON | J10: GAL | S10: Driveway Gaps=6500 (rumble strips)
B11: STH 49 | C11: 5535.25 | E11: 28919.73 | F11: =CEILING(((735051.79/9)*110*1.75)/2000,100) -> 7900 | G11: =CEILING(((735051.79/9)*0.07),100) -> 5800 | H11: =CEILING((E11-C11)-6500,5) -> 16885 | I11: - | J11: -
B12: STH 49 | C12: 9359 | E12: 9459 | F12: - | G12: - | H12: - | I12: =CEILING((((30*100)/9)*110*4.5)/2000,5) -> 85 | J12: =CEILING(((2*(100*30)/9)*0.07),5) -> 50 | L12: Pipe = 100' open cut HMA width | S12: Autocad flood of HMA area = 735,051.79 SF
B13: STH 49 | C13: 27797 | E13: 27911 | F13: - | G13: - | H13: - | I13: =CEILING((((30*114)/9)*110*4.5)/2000,5) -> 95 | J13: =CEILING(((2*(114*30)/9)*0.07),5) -> 55 | L13: Scew pipe = 114' open cut HMA width | S13: See J:\Active\NC\6210-00-03 STH 49\C3D\62100003\Design\Quantities\90% Quantities\GRB_MQs_90_pavt-STH 49.dwg
B14: TOTAL | F14: =SUM(F11:F13) -> 7900 | G14: =SUM(G11:G13) -> 5800 | H14: =SUM(H11:H13) -> 16885 | I14: =SUM(I11:I13) -> 180 | J14: =SUM(J11:J13) -> 105
B17: CALC'D BY: JG
B18: CHECKED BY: TJO
B19: UPDATED BY: GRB 10/26/2018
U21: 440.4410 and 460.2000 Based on FDM 19-21-2 2.2.1 and 2.2.2
U22: Rumble Strips LF reduced by 400 for Project Intersections

Sheet PIPES
A2: CULVERT PIPES
B3: PROJECT ID: 6210-01-60
F4: 521.1024 | G4: 521.1036 | H4: 522.1048* | I4: 522.0148* | J4: SPV.0060.01 | O4: SPV.0060.01 | P4: SPV.0060.01 | Q4: SPV.0060.01
F5: APRON ENDWALLS FOR CULVERT PIPE STEEL 24-INCH | G5: APRON ENDWALLS FOR CULVERT PIPE STEEL 36-INCH | H5: APRON ENDWALLS FOR CULVERT PIPE REINFORCED CONCRETE 48-INCH | I5: CULVERT PIPE REINFORCED CONCRETE CLASS III 48-INCH | J5: LANE SHIFT | O5: LANE SHIFT | P5: LANE SHIFT COMMON EX | Q5: LANE SHIFT BASE AGGREGATE
A9: CULVERT # | B9: ROADWAY | C9: STATION | D9: TO | E9: STATION | F9: EACH | G9: EACH | H9: EACH | I9: LF | J9: EACH | O9: EACH | P9: CY | Q9: TON
A10: 690490010 | B10: STH 49 | C10: 65+55 | E10: 65+55 | F10: - | G10: 2 | H10: - | I10: - | J10: - | O10: - | P10: - | Q10: -
A11: 690490020 | B11: STH 49 | C11: 94+09 | E11: 94+09 | F11: - | G11: - | H11: 2 | I11: =100.33-(98/12*2) -> 83.99666667 | J11: 2 | O11: 2 | P11: 192 | Q11: =(814.5*(0.5/3))*2 -> 271.5
A12: 690490040 | B12: STH 49 | C12: 155+01 | E12: 155+01 | F12: 2 | G12: - | H12: - | I12: - | J12: - | O12: - | P12: - | Q12: -
A13: 690490050 | B13: STH 49 | C13: 161+35 | E13: 161+66 | F13: 2 | G13: - | H13: - | I13: - | J13: - | O13: - | P13: - | Q13: -
A14: 690490060 | B14: STH 49 | C14: 235+33 | E14: 235+33 | F14: 2 | G14: - | H14: - | I14: - | J14: - | O14: - | P14: - | Q14: -
A15: 690490080 | B15: STH 49 | C15: 278+31 | E15: 278+90 | F15: - | G15: - | H15: 2 | I15: =136.33-(98/12*2) -> 119.9966667 | J15: 2 | O15: 2 | P15: 208 | Q15: =(912.2*(0.5/3))*2 -> 304.0666667
B16: TOTAL | F16: =SUM(F10:F15) -> 6 | G16: =SUM(G10:G15) -> 2 | H16: =SUM(H10:H15) -> 4 | I16: =SUM(I10:I15) -> 203.9933333 | J16: =SUM(J10:J15) -> 4 | O16: =SUM(O10:O15) -> 4 | P16: =SUM(P10:P15) -> 400 | Q16: =SUM(Q10:Q15) -> 575.5666667
H17: *TIE ALL JOINTS | P17: @$20.00/CY | Q17: @$20.00/TON
P18: =P16*20 -> 8000 | Q18: =Q16*20 -> 11511.33333
B19: CALC'D BY: JG
B20: CHECKED BY: TJO
B21: UPDATED BY: GRB 10/26/2018

Sheet RIPRAP
B2: RIPRAP
B3: PROJECT ID: 6210-01-60
F4: 606.01 | G4: 645.013
F5: RIPRAP LIGHT | G5: GEOTEXTILE TYPE R
B7: ROADWAY | C7: STATION | D7: TO | E7: STATION | F7: CY | G7: SY
B8: STH 49 | C8: 65+55 | E8: 65+55 | F8: 2.666666667 | G8: 14
B9: STH 49 | C9: 94+09 | E9: 94+09 | F9: 2 | G9: 12
B10: STH 49 | C10: 155+01 | E10: 155+01 | F10: 2 | G10: 12
B11: STH 49 | C11: 161+35 | E11: 161+66 | F11: 2 | G11: 12
B12: STH 49 | C12: 235+33 | E12: 235+33 | F12: 2 | G12: 12
B13: STH 49 | C13: 278+31 | E13: 278+90 | F13: 2 | G13: 12
B14: TOTAL | F14: =SUM(F8:F13) -> 12.66666667 | G14: =SUM(G8:G13) -> 74
B18: CALC'D BY: JG | C18: GRB
B19: CHECKED BY: TJO
B20: UPDATED BY: JAG 1/22/19
L24: RIPRAP | M24: GEOTEXTILE
J25: W (FT) | K25: L (FT) | L25: CY | M25: SY
I26: 24" STEEL AEW | J26: 6 | K26: 4 | L26: =(J26*K26*1)/27 -> 0.8888888889 | M26: =((J26+2)*(K26+2))/9 -> 5.333333333
I27: 36" STEEL AEW | J27: 8 | K27: 4 | L27: =(J27*K27*1)/27 -> 1.185185185 | M27: =((J27+2)*(K27+2))/9 -> 6.666666667
I28: 48" CPRC AEW | J28: 7 | K28: 4 | L28: 1.037037037 | M28: =((J28+2)*(K28+2))/9 -> 6
J31: Following Construction detail in Plans

Sheet EROSION
B2: EROSION CONTROL
B3: PROJECT ID: 6210-01-60
F5: 625.05 | G5: 628.1504 | H5: 628.152 | I5: 628.2008 | J5: 628.7555 | K5: 629.021 | L5: 630.013 | M5: 630.02 | N5: 633.52
F6: SALVAGED TOPSOIL | G6: SILT FENCE | H6: SILT FENCE MAINTENANCE | I6: EROSION MAT URBAN CLASS 1 TYPE B | J6: CULVERT PIPE CHECKS | K6: FERTILIZER TYPE B | L6: SEEDING MIXTURE NO. 30 | M6: SEEDING TEMPORARY | N6: MARKERS CULVERT END
B9: ROADWAY | C9: STATION | D9: TO | E9: STATION | F9: SY | G9: LF | H9: LF | I9: SY | J9: EACH | K9: CWT | L9: LB | M9: LB | N9: EACH
B10: STH 49 | C10: 65+55 | E10: 65+55 | F10: =I10 -> 40 | G10: 100 | H10: 100 | I10: 40 | J10: 4 | K10: =CEILING(((I10*9)/1000)*7/100,0.1) -> 0.1 | L10: =((I10*9)/1000)*2 -> 0.72 | M10: =((I10*9)/1000)*3 -> 1.08 | N10: 2
B11: STH 49 | C11: 94+09 | E11: 94+09 | F11: =I11 -> 815 | G11: 550 | H11: 550 | I11: 815 | J11: 6 | K11: 0.6 | L11: =((I11*9)/1000)*2 -> 14.67 | M11: =((I11*9)/1000)*3 -> 22.005 | N11: 2
B12: STH 49 | C12: 155+01 | E12: 155+01 | F12: 40 | G12: 100 | H12: 100 | I12: 40 | J12: 2 | K12: 0.1 | L12: =((I12*9)/1000)*2 -> 0.72 | M12: 1.08 | N12: 2
B13: STH 49 | C13: 161+35 | E13: 161+66 | F13: 40 | G13: 100 | H13: 100 | I13: 40 | J13: 2 | K13: 0.1 | L13: =((I13*9)/1000)*2 -> 0.72 | M13: 1.08 | N13: 2
B14: STH 49 | C14: 235+33 | E14: 235+33 | F14: 40 | G14: 100 | H14: 100 | I14: 40 | J14: 2 | K14: 0.1 | L14: =((I14*9)/1000)*2 -> 0.72 | M14: 1.08 | N14: 2
B15: STH 49 | C15: 278+31 | E15: 278+90 | F15: 915 | G15: 600 | H15: 600 | I15: 915 | J15: 6 | K15: 0.6 | L15: =CEILING(((I15*9)/1000)*2,1) -> 17 | M15: =((I15*9)/1000)*3 -> 24.705 | N15: 2
B16: TOTAL | F16: =SUM(F10:F15) -> 1890 | G16: 1550 | H16: 1550 | I16: 1890 | J16: 22 | K16: 1.6 | L16: =CEILING(SUM(L10:L15),1)+1 -> 36 | M16: =SUM(M10:M15) -> 51.03 | N16: =SUM(N10:N15) -> 12
B22: CALC'D BY: JG
B23: CHECKED BY: TJO
B24: UPDATED BY: JAG 1/16/2019

Sheet STAKING
B2: CONSTRUCTION STAKING
F3: PROJECT ID: 6210-01-60 | G3: PROJECT ID: 6210-00-73
F4: 650.6 | G4: 650.8 | H4: 650.991
F5: CONSTRUCTION STAKING PIPE CULVERTS | G5: CONSTRUCTION STAKING RESURFACING REFRENCE | H5: CONSTRUCTION STAKING SUPPLEMENTAL CONTROL
B9: ROADWAY | C9: STATION | D9: TO | E9: STATION | F9: EACH | G9: LF | H9: LS
B10: STH 49 | C10: 5535.25 | E10: 28919.73 | F10: - | G10: 23390 | H10: 1
B11: STH 49 | C11: 94+09 | E11: 94+09 | F11: 1 | G11: - | H11: -
B12: STH 49 | C12: 278+31 | E12: 278+90 | F12: 1 | G12: - | H12: -
B13: TOTAL | F13: =SUM(F10:F12) -> 2 | G13: 23390 | H13: 1
B18: CALC'D BY: JG
B19: CHECKED BY: TJO

Sheet TC
B2: TRAFFIC CONTROL
B3: PROJECT ID: 6210-01-60
D4: 643.09 | F4: 643.0310.S | H4: 643.03
C5: DURATION | D5: TRAFFIC CONTROL SIGNS | F5: TEMPORARY PORTABLE RUMBLE STRIPS (project) 02. 6210-01-60 | H5: TRAFFIC CONTROL DRUMS
B6: LOCATION | C6: DAYS | D6: DAY | F6: LS | H6: DAY | N6: CALC'D BY: JG
B7: PROJECT | C7: 12 | D7: 120 | F7: 1 | H7: =34*C7 -> 408 | N7: CHECKED BY: TJO
B8: TOTAL | D8: =SUM(D7:D7) -> 120 | F8: 1 | H8: =SUM(H7) -> 408 | N8: UPDATED BY: GRB 10/26/2018
N9: UPDATED BY: JAG 12/4/2018
B10: PROJECT ID: 6210-00-73
D11: 643.09 | F11: 643.0310.S | H11: 643.1
C12: DURATION | D12: TRAFFIC CONTROL SIGNS | F12: TEMPORARY PORTABLE RUMBLE STRIPS (project) 01. 6210-00-73 | H12: TRAFFIC CONTROL SIGNS FIXED MESSAGE
B13: LOCATION | C13: DAYS | D13: DAY | F13: LS | H13: SF
B14: PROJECT | C14: 30 | D14: =18*C14 -> 540 | F14: 1 | H14: 64
B15: TOTAL | D15: =D14 -> 540 | F15: 1 | H15: =SUM(H14) -> 64

Sheet SIGNING
B2: SIGNS
B3: PROJECT ID: 6210-01-60
D4: 638.2102 | F4: 638.4
D5: MOVING SIGNS TYPE II | F5: MOVING SMALL SIGN SUPPORTS
B6: STATION | C6: SIDE | D6: EACH | F6: EACH | N6: CALC'D BY: JG
B7: 9419 | C7: LT | D7: 2 | F7: 1
B8: 9525 | C8: RT | D8: 2 | F8: 1
B9: 27924 | C9: LT | D9: 1 | F9: 1
B10: 27926 | C10: RT | D10: 1 | F10: 1
B11: TOTAL | D11: =SUM(D7:E10) -> 6 | F11: =SUM(F7:G10) -> 4

Sheet MARKINGS
A2: PAVEMENT MARKING ITEMS
A3: PROJECT ID: 6210-00-73
F4: 646.102 | G4: 646.104 | H4: 646.452 | I4: 646.304 | J4: 648.01 | K4: 649.0105
F5: MARKING LINE | J5: LOCATING NO-PASSING ZONES | K5: TEMPORARY MARKING LINE PAINT 4-INCH
G6: GROOVED WET REF EPOXY 4-INCH WHITE | H6: SAME DAY EPOXY 4-INCH YELLOW | I6: GROOVED WET REF EPOXY 8-INCH WHITE
F7: EPOXY 4-INCH YELLOW
K8: YELLOW | L8: WHITE
A9: ROADWAY | B9: STATION | C9: TO | D9: STATION | E9: DESCRIPTION | F9: LF | G9: LF | H9: LF | I9: LF | J9: MI | K9: LF | L9: LF
A10: STH 49 | B10: 5535.25 | D10: 10250 | E10: SKIPS | F10: =N10+1 -> 1179.6875 | G10: - | H10: =N10+1 -> 1179.6875 | I10: - | J10: - | K10: - | L10: - | N10: 1178.6875
A11: STH 49 | B11: 10400 | D11: 10750 | E11: - | F11: =N11 -> - | G11: - | H11: =N11 -> - | I11: 300 | J11: - | K11: - | L11: - | N11: -
A12: STH 49 | B12: 10800 | D12: 10950 | E12: - | F12: - | G12: - | H12: - | I12: - | J12: - | K12: - | L12: - | N12: -
A13: STH 49 | B13: 10250 | D13: 11750 | E13: NB SKIPS/SB SOLID | F13: 1875 | G13: - | H13: 1875 | I13: - | J13: - | K13: - | L13: - | N13: 1875
A14: STH 49 | B14: 11750 | D14: 12876 | E14: SKIPS | F14: 281.5 | G14: - | H14: 281.5 | I14: - | J14: - | K14: - | L14: - | N14: 281.5
A15: STH 49 | B15: 12876 | D15: 13850 | E15: SB SKIPS/NB SOLID | F15: 1217.5 | G15: - | H15: 1217.5 | I15: - | J15: - | K15: - | L15: - | N15: 1217.5
A16: STH 49 | B16: 13850 | D16: 14100 | E16: SOLID | F16: 500 | G16: - | H16: 500 | I16: - | J16: - | K16: - | L16: - | N16: 500
A17: STH 49 | B17: 14100 | D17: 15160 | E17: NB SKIPS/SB SOLID | F17: 1325 | G17: - | H17: 1325 | I17: - | J17: - | K17: - | L17: - | N17: 1325
A18: STH 49 | B18: 15160 | D18: 16663 | E18: SKIPS | F18: 375.75 | G18: - | H18: 375.75 | I18: - | J18: - | K18: - | L18: - | N18: 375.75
A19: STH 49 | B19: 16663 | D19: 17675 | E19: SB SKIPS/NB SOLID | F19: 1265 | G19: - | H19: 1265 | I19: - | J19: - | K19: - | L19: - | N19: 1265
A20: STH 49 | B20: 17675 | D20: 17879 | E20: SOLID | F20: 408 | G20: - | H20: 408 | I20: - | J20: - | K20: - | L20: - | N20: 408
A21: STH 49 | B21: 17879 | D21: 18923 | E21: NB SKIPS/SB SOLID | F21: 1305 | G21: - | H21: 1305 | I21: - | J21: - | K21: - | L21: - | N21: 1305
A22: STH 49 | B22: 18923 | D22: 24680 | E22: SKIPS | F22: 1439.25 | G22: - | H22: 1439.25 | I22: - | J22: - | K22: - | L22: - | N22: 1439.25
A23: STH 49 | B23: 24680 | D23: 25720 | E23: SB SKIPS/NB SOLID | F23: 1300 | G23: - | H23: 1300 | I23: - | J23: - | K23: - | L23: - | N23: 1300
A24: STH 49 | B24: 25720 | D24: 26093 | E24: SKIPS | F24: 93.25 | G24: - | H24: 93.25 | I24: - | J24: - | K24: - | L24: - | N24: 93.25
A25: STH 49 | B25: 26093 | D25: 27250 | E25: NB SKIPS/SB SOLID | F25: 1446.25 | G25: - | H25: 1446.25 | I25: - | J25: - | K25: - | L25: - | N25: 1446.25
A26: STH 49 | B26: 27250 | D26: 28500 | E26: SKIPS | F26: 312.5 | G26: - | H26: 312.5 | I26: - | J26: - | K26: - | L26: - | N26: 312.5
A27: STH 49 | B27: 28500 | D27: 28919.73 | E27: SB SKIPS/NB SOLID | F27: 524.6625 | G27: - | H27: 524.6625 | I27: - | J27: - | K27: - | L27: - | N27: 524.6625
A28: STH 49 | B28: 5535 | D28: 28920 | E28: - | F28: - | G28: 46800 | H28: - | I28: - | J28: 4.43 | K28: =G28 -> 46800 | L28: 46800
A29: TOTAL | F29: =CEILING(SUM(F10:F27),50) -> 14850 | G29: =CEILING(SUM(G10:G28),100) -> 46800 | H29: =CEILING(SUM(H10:H27),50) -> 14850 | I29: 300 | J29: 4.428878788 | K29: 46800 | L29: 46800
K30: 93600
B35: CALC'D BY: JG
B36: CHECKED BY: TJO
B37: UPDATED BY: GRB 10/26/2018
B38: UPDATED BY: JAG 1/16/2019

Sheet SAWCUTS
B2: SAWING ASPHALT
B3: PROJECT ID: 6210-01-60
E4: 690.015
E5: SAWING ASPHALT
J8: CALC'D BY: JG
B9: ROADWAY | C9: STATION | E9: LF | J9: CHECKED BY: TJO
B10: STH 49 | C10: 9359 | E10: 30 | J10: UPDATED BY: GRB 10/26/2018
B11: STH 49 | C11: 94+59 | E11: 30 | J11: UPDATED BY: JAG 1/16/2019
B12: STH 49 | C12: 27781 | E12: 30
B13: STH 49 | C13: 27940 | E13: 30
B14: TOTAL | E14: =SUM(E10:E13) -> 120
